bitfinex/quotes_BTCUSD_20251116
["timestamp","ask_amount","ask_price","bid_price","bid_amount"]
[1763329972103,0.53408364,93879.0,93878.0,11.02408308]
[1763329975343,0.79076364,93879.0,93878.0,11.01124336]
[1763329975564,0.79076364,93879.0,93878.0,10.91489336]
[1763329976114,0.53408364,93879.0,93878.0,10.91489336]
[1763329978651,0.53408364,93879.0,93878.0,10.90205321]
[1763329980733,0.64107364,93879.0,93878.0,10.90205321]
[1763329980946,0.68775364,93879.0,93878.0,10.87637235]
[1763329981159,0.53408364,93879.0,93878.0,10.87637235]
[1763329982040,0.53408364,93879.0,93878.0,10.97272235]
[1763329982693,0.52908364,93879.0,93878.0,10.87637235]
[1763329983568,0.52908364,93879.0,93878.0,10.97272235]
[1763329983997,0.52908364,93879.0,93878.0,10.87637235]
[1763329984212,0.52808364,93879.0,93878.0,10.87637235]
[1763329984685,0.52908364,93879.0,93878.0,10.87637235]
[1763329984888,0.52908364,93879.0,93878.0,10.97272235]
[1763329985130,0.52808364,93879.0,93878.0,10.97272235]
[1763329985375,0.78576364,93879.0,93878.0,10.97272235]
[1763329985585,0.77443378,93879.0,93878.0,10.95988267]
[1763329985810,0.77343378,93879.0,93878.0,10.86353267]
[1763329986020,0.77443378,93879.0,93878.0,10.86353267]
[1763329986226,0.68887378,93879.0,93878.0,10.95988267]
[1763329988378,0.51775378,93879.0,93878.0,10.95988267]
[1763329988818,0.51775378,93879.0,93878.0,10.94704357]
[1763329990244,0.51675378,93879.0,93878.0,10.94704357]
[1763329990873,0.51775378,93879.0,93878.0,10.94704357]
[1763329991278,0.51675378,93879.0,93878.0,10.94704357]
[1763329994492,0.53673745,93879.0,93878.0,10.94704357]
[1763329995446,0.62229745,93879.0,93878.0,10.93420514]
[1763329995805,0.53673745,93879.0,93878.0,10.93420514]
[1763329996005,0.53673745,93879.0,93878.0,11.08129326]
[1763329996161,0.53673745,93879.0,93878.0,10.97762388]
[1763329996763,0.03673745,93879.0,93878.0,10.97762388]
[1763329998644,0.03673745,93879.0,93878.0,10.96478634]
[1763329998861,0.03673745,93879.0,93878.0,10.96578634]
[1763329999046,0.03673745,93879.0,93878.0,10.9223676]
[1763329999643,0.53673745,93879.0,93878.0,11.05189393]
[1763330000081,0.53673745,93879.0,93878.0,10.96478634]
[1763330000908,0.03673745,93879.0,93878.0,10.96478634]
[1763330001892,0.03673745,93879.0,93878.0,10.96578634]
[1763330002147,0.03673745,93879.0,93878.0,10.96478634]
[1763330002555,0.03673745,93879.0,93878.0,10.96578634]
[1763330004503,0.03673745,93879.0,93878.0,11.01578634]
[1763330005204,0.12229745,93879.0,93878.0,11.01578634]
[1763330005410,0.20785745,93879.0,93878.0,11.00294922]
[1763330005619,0.20785745,93879.0,93878.0,10.95294922]
[1763330006287,0.20785745,93879.0,93878.0,10.95194922]
[1763330006458,0.20785745,93879.0,93878.0,10.95294922]
[1763330008785,0.20785745,93879.0,93878.0,10.94011212]
[1763330009722,0.19110367,93879.0,93878.0,10.94011212]
[1763330010847,0.01998367,93879.0,93878.0,10.94011212]
[1763330011849,0.01998367,93879.0,93878.0,10.93911212]
[1763330012063,0.01998367,93879.0,93878.0,10.89669338]
[1763330012260,0.01998367,93879.0,93878.0,10.80034338]
[1763330012465,0.01998367,93879.0,93878.0,10.7736641]
[1763330012603,0.51998367,93879.0,93878.0,10.7746641]
[1763330012810,0.53673603,93879.0,93878.0,10.7746641]
[1763330013006,0.53673603,93879.0,93878.0,10.7736641]
[1763330015362,0.79341603,93879.0,93878.0,10.7736641]
[1763330015568,0.79441603,93879.0,93878.0,10.76082438]
[1763330015768,0.79441603,93879.0,93878.0,10.85759438]
[1763330015987,0.79341603,93879.0,93878.0,10.85759438]
[1763330016393,0.79441603,93879.0,93878.0,10.85759438]
[1763330017786,0.79341603,93879.0,93878.0,10.85759438]
[1763330018168,0.79441603,93879.0,93878.0,10.85759438]
[1763330018374,0.70885603,93879.0,93878.0,10.85759438]
[1763330018797,0.70885603,93879.0,93878.0,10.84475601]
[1763330020462,0.53773603,93879.0,93878.0,10.88817475]
[1763330020866,0.03773603,93879.0,93878.0,10.88817475]
[1763330021264,0.03673603,93879.0,93878.0,10.88817475]
[1763330022130,0.03673603,93879.0,93878.0,10.88917475]
[1763330022821,0.03673603,93879.0,93878.0,10.89017475]
[1763330023065,0.03673603,93879.0,93878.0,10.99384413]
[1763330023235,0.03673603,93879.0,93878.0,10.89017475]
[1763330023451,0.01998367,93879.0,93878.0,10.89017475]
[1763330023819,0.01998367,93879.0,93878.0,10.88817475]
[1763330024024,0.01998367,93879.0,93878.0,10.88917475]
[1763330024226,0.01998367,93879.0,93878.0,10.88817475]
[1763330024422,0.01998367,93879.0,93878.0,11.00077475]
[1763330024778,0.01998367,93879.0,93878.0,11.00177475]
[1763330025018,0.01998367,93879.0,93878.0,10.88917475]
[1763330025419,0.19110367,93879.0,93878.0,10.88917475]
[1763330025623,0.19110367,93879.0,93878.0,10.87633676]
[1763330025825,0.69110367,93879.0,93878.0,10.87633676]
[1763330026232,0.51998367,93879.0,93878.0,10.87633676]
[1763330026748,0.03673403,93879.0,93878.0,10.87533676]
[1763330027160,0.03673403,93879.0,93878.0,10.87633676]
[1763330027767,0.53673403,93879.0,93878.0,10.83291802]
[1763330027993,0.53673403,93879.0,93878.0,10.87633676]
[1763330028639,0.53673403,93879.0,93878.0,10.86349883]
[1763330029714,0.03673403,93879.0,93878.0,10.86349883]
[1763330030972,0.03673403,93879.0,93878.0,10.81108009]
[1763330032474,0.03673403,93879.0,93878.0,10.71431009]
[1763330032649,0.03673403,93879.0,93878.0,10.80969009]
[1763330032953,0.03673403,93879.0,93878.0,10.80869009]
[1763330033776,0.53673403,93879.0,93878.0,10.80869009]
[1763330034325,0.53773403,93879.0,93878.0,10.80869009]
[1763330035327,0.70885403,93879.0,93878.0,10.80869009]
[1763330035536,0.62329403,93879.0,93878.0,10.79585129]
[1763330036361,0.62229403,93879.0,93878.0,10.79585129]
[1763330037086,0.60554367,93879.0,93878.0,10.79585129]
[1763330037285,0.51998367,93879.0,93878.0,10.79585129]
[1763330038810,0.51998367,93879.0,93878.0,10.78301249]
[1763330040655,0.53673484,93879.0,93878.0,10.78301249]
[1763330041435,0.53673484,93879.0,93878.0,10.68763249]
[1763330041817,0.68713484,93879.0,93878.0,10.66195395]
[1763330043137,0.53673484,93879.0,93878.0,10.66195395]
[1763330043395,0.53673484,93879.0,93878.0,10.75733395]
[1763330043595,0.53773484,93879.0,93878.0,10.75733395]
[1763330044040,0.53673484,93879.0,93878.0,10.75733395]
[1763330044449,0.53773484,93879.0,93878.0,10.75733395]
[1763330045128,0.5377266,93879.0,93878.0,10.75733395]
[1763330045339,0.7944066,93879.0,93878.0,10.75733395]
[1763330045551,0.7934066,93879.0,93878.0,10.74449478]
[1763330046399,0.7934066,93879.0,93878.0,10.64911478]
[1763330046601,0.7934066,93879.0,93878.0,10.74449478]
[1763330047446,0.5367266,93879.0,93878.0,10.74449478]
[1763330048792,0.5367266,93879.0,93878.0,10.73165571]
[1763330050712,0.51997543,93879.0,93878.0,10.73165571]
[1763330054155,0.53672701,93879.0,93878.0,10.73165571]
[1763330055301,0.62228701,93879.0,93878.0,10.73165571]
[1763330055624,0.53672701,93879.0,93878.0,10.76223638]
[1763330055823,0.03672701,93879.0,93878.0,10.76223638]
[1763330056847,0.03672701,93879.0,93878.0,10.71981764]
[1763330057836,0.53672701,93879.0,93878.0,10.71981764]
[1763330058639,0.53672701,93879.0,93878.0,10.71881764]
[1763330058842,0.53672701,93879.0,93878.0,10.58491942]
[1763330059049,0.69092701,93879.0,93878.0,10.58491942]
[1763330059618,0.64625701,93879.0,93878.0,10.58491942]
[1763330060648,0.53672701,93879.0,93878.0,10.58491942]
[1763330061151,0.53772701,93879.0,93878.0,10.58491942]
[1763330061581,0.53672701,93879.0,93878.0,10.58491942]
[1763330061790,0.53772701,93879.0,93878.0,10.58491942]
[1763330062415,0.53672701,93879.0,93878.0,10.58491942]
[1763330062650,0.54877701,93879.0,93878.0,10.58491942]
[1763330062861,0.64259701,93879.0,93878.0,10.58451348]
[1763330063701,0.69259701,93879.0,93878.0,10.58451348]
[1763330063957,0.73501575,93879.0,93878.0,9.63152299]
[1763330064164,0.73501575,93879.0,93878.0,8.93152299]
[1763330064165,0.71926417,93879.0,93878.0,8.93152299]
[1763330064366,0.81926417,93879.0,93878.0,8.93152299]
[1763330064571,0.81826417,93879.0,93878.0,8.93152299]
[1763330064995,0.82226417,93879.0,93878.0,8.93152299]
[1763330065450,0.89338417,93879.0,93878.0,8.93152299]
[1763330065654,0.89338417,93879.0,93878.0,8.91867816]
[1763330066063,1.31946417,93879.0,93878.0,8.91867816]
[1763330066328,1.31746417,93879.0,93878.0,8.91867816]
[1763330066512,1.14834417,93879.0,93878.0,8.91867816]
[1763330067280,1.14634417,93879.0,93878.0,8.91867816]
[1763330067479,1.14834417,93879.0,93878.0,8.91867816]
[1763330067701,1.16510069,93879.0,93878.0,8.91867816]
[1763330069664,1.39242526,93879.0,93878.0,8.91867816]
[1763330069881,1.41227378,93879.0,93878.0,8.91867816]
[1763330071148,1.41227378,93879.0,93878.0,8.35119916]
[1763330074561,1.41227378,93879.0,93878.0,8.33835382]
[1763330075072,1.51027378,93879.0,93878.0,8.30625667]
[1763330075280,1.59887378,93879.0,93878.0,8.30625667]
[1763330075461,1.76807378,93879.0,93878.0,8.27415952]
[1763330075725,1.76807378,93879.0,93878.0,7.37336567]
[1763330076136,1.77107378,93879.0,93878.0,7.37336567]
[1763330076483,1.76807378,93879.0,93878.0,7.37336567]
[1763330076686,1.77107378,93879.0,93878.0,7.37336567]
[1763330076899,1.59987378,93879.0,93878.0,7.37336567]
[1763330077860,1.58311726,93879.0,93878.0,6.42830065]
[1763330078260,1.58311726,93879.0,93878.0,5.48692348]
[1763330078613,1.58311726,93879.0,93878.0,4.4981914]
[1763330079249,1.49751726,93879.0,93878.0,3.59962981]
[1763330079481,1.39751726,93879.0,93878.0,2.74377907]
[1763330080082,1.39451726,93879.0,93878.0,2.74377907]
[1763330080521,1.39351726,93879.0,93878.0,2.74377907]
[1763330080750,1.39551726,93879.0,93878.0,2.74377907]
[1763330081423,1.4122739,93879.0,93878.0,2.74377907]
[1763330082271,1.41225936,93879.0,93878.0,2.74377907]
[1763330082486,1.41225936,93879.0,93878.0,2.71459907]
[1763330084707,1.36225936,93879.0,93878.0,2.71459907]
[1763330084940,1.41225936,93879.0,93878.0,2.71459907]
[1763330085321,1.58345936,93879.0,93878.0,2.61175527]
[1763330085464,1.68145936,93879.0,93878.0,2.51179076]
[1763330085667,1.68145936,93879.0,93878.0,2.4989434]
[1763330085890,1.68145936,93879.0,93878.0,2.3989789]
[1763330085891,1.68445936,93879.0,93878.0,2.3989789]
[1763330086131,1.68445936,93879.0,93878.0,1.87108994]
[1763330086304,1.68145936,93879.0,93878.0,1.87108994]
[1763330086668,1.68445936,93879.0,93878.0,1.01524101]
[1763330086874,1.68245936,93879.0,93878.0,1.01524101]
[1763330087303,1.68445936,93879.0,93878.0,1.01524101]
[1763330087509,1.68245936,93879.0,93878.0,1.01524101]
[1763330087717,0.04341874,93877.0,93870.0,0.0005]
[1763330087949,0.15772874,93871.0,93870.0,0.0005]
[1763330088134,0.60364272,93871.0,93870.0,0.0005]
[1763330088338,0.69181272,93871.0,93870.0,0.0005]
[1763330088534,0.79181272,93871.0,93870.0,0.0005]
[1763330089708,1.29481272,93871.0,93870.0,0.0005]
[1763330090110,3.54211272,93871.0,93870.0,0.0005]
[1763330090560,3.54411272,93871.0,93870.0,0.0005]
[1763330091100,3.54211272,93871.0,93870.0,0.0005]
[1763330091314,0.09341874,93861.0,93860.0,0.0005]
[1763330091522,0.54021272,93861.0,93860.0,0.0005]
[1763330091737,0.63978272,93861.0,93860.0,0.0005]
[1763330091913,0.73978272,93861.0,93860.0,0.0005]
[1763330092669,1.23978272,93861.0,93860.0,0.0005]
[1763330093468,1.24278272,93861.0,93860.0,0.0005]
[1763330093634,1.24478272,93861.0,93860.0,0.0005]
[1763330094923,1.26154198,93861.0,93860.0,0.0005]
[1763330095322,1.51834198,93861.0,93860.0,0.0005]
[1763330095713,0.3279723,93840.0,93827.0,0.21]
[1763330095918,0.05,93838.0,93837.0,66.01319903]
[1763330096117,0.73593398,93838.0,93837.0,66.01319903]
[1763330096776,0.65037872,93838.0,93837.0,66.01319903]
[1763330097178,0.65137872,93838.0,93837.0,66.01319903]
[1763330097797,0.65099388,93838.0,93837.0,66.0003501]
[1763330098072,1.15099388,93838.0,93837.0,66.0003501]
[1763330098923,0.94895872,93838.0,93837.0,66.0003501]
[1763330099147,1.05564872,93838.0,93837.0,66.0003501]
[1763330099364,0.95699872,93838.0,93837.0,66.00150226]
[1763330099885,1.05564872,93838.0,93837.0,66.00150226]
[1763330100725,0.94895872,93838.0,93837.0,66.00150226]
[1763330100952,0.94895872,93838.0,93837.0,66.09420226]
[1763330101775,0.94895872,93838.0,93837.0,66.00150226]
[1763330101776,0.94695872,93838.0,93837.0,66.00150226]
[1763330102150,0.94795872,93838.0,93837.0,66.00150226]
[1763330102522,1.10426388,93838.0,93837.0,66.00150226]
[1763330102731,1.10326388,93838.0,93837.0,66.00150226]
[1763330103112,1.10326388,93838.0,93837.0,65.92788898]
[1763330103316,1.20326388,93838.0,93837.0,65.92788898]
[1763330104049,1.20226388,93838.0,93837.0,65.92788898]
[1763330104227,1.10326388,93838.0,93837.0,65.92788898]
[1763330104434,1.10426388,93838.0,93837.0,65.92788898]
[1763330104742,1.10326388,93838.0,93837.0,65.92788898]
[1763330104940,1.0834299,93838.0,93837.0,65.92788898]
[1763330105101,1.10532639,93838.0,93837.0,65.92788898]
[1763330105303,1.36212639,93838.0,93837.0,65.92788898]
[1763330105736,1.27352639,93838.0,93837.0,65.91503925]
[1763330105906,1.10332639,93838.0,93837.0,65.88376167]
[1763330106275,1.10532639,93838.0,93837.0,65.88376167]
[1763330106687,1.10432639,93838.0,93837.0,65.88376167]
[1763330106951,1.10532639,93838.0,93837.0,65.88376167]
[1763330107114,1.20532639,93838.0,93837.0,65.88376167]
[1763330107481,1.20332639,93838.0,93837.0,65.88376167]
[1763330107680,1.20332639,93838.0,93837.0,65.87091176]
[1763330107886,1.20532639,93838.0,93837.0,65.87091176]
[1763330108110,0.20532639,93838.0,93837.0,65.87091176]
[1763330108308,0.20630639,93838.0,93837.0,65.87091176]
[1763330108525,0.56690688,93838.0,93837.0,65.87091176]
[1763330108856,0.46690688,93838.0,93837.0,65.87091176]
[1763330109199,0.96590688,93838.0,93837.0,65.87091176]
[1763330109407,0.96390688,93838.0,93837.0,65.87091176]
[1763330109651,0.96490688,93838.0,93837.0,65.87091176]
[1763330110574,0.96690688,93838.0,93837.0,65.87091176]
[1763330111531,1.01652204,93838.0,93837.0,65.87091176]
[1763330112201,1.04902204,93838.0,93837.0,65.87091176]
[1763330112934,0.96492688,93838.0,93837.0,65.87091176]
[1763330113312,0.96392688,93838.0,93837.0,65.96361176]
[1763330113522,0.96392688,93838.0,93837.0,65.87091176]
[1763330114174,0.96592688,93838.0,93837.0,65.87091176]
[1763330114595,0.96392688,93838.0,93837.0,65.87091176]
[1763330114799,0.96292688,93838.0,93837.0,65.87091176]
[1763330114979,0.96392688,93838.0,93837.0,65.87091176]
[1763330115392,1.22084688,93838.0,93837.0,65.87091176]
[1763330115749,1.22084688,93838.0,93837.0,65.858065]
[1763330116196,1.03144957,93838.0,93837.0,65.957545]
[1763330116394,0.201,93850.0,93837.0,65.9407877]
[1763330116395,0.3269723,93850.0,93837.0,65.9407877]
[1763330116723,0.001,93860.0,93849.0,0.00111]
[1763330116724,0.3279723,93860.0,93849.0,0.00111]
[1763330116923,0.001,93860.0,93859.0,0.05279]
[1763330117152,0.3269723,93850.0,93841.0,0.09620874]
[1763330117357,0.3269723,93850.0,93842.0,0.10366938]
[1763330117765,0.5,93850.0,93849.0,0.05179]
[1763330117967,0.5,93850.0,93849.0,0.10358]
[1763330119927,0.51675518,93850.0,93849.0,0.10358]
[1763330120444,0.3269723,93860.0,93849.0,0.10358]
[1763330120646,0.3279723,93870.0,93859.0,0.05179]
[1763330120930,0.3279723,93860.0,93850.0,0.05179]
[1763330121278,0.7541223,93860.0,93850.0,0.05179]
[1763330121703,1.2541223,93860.0,93850.0,0.05179]
[1763330121927,1.2541223,93860.0,93849.0,0.00085486]
[1763330122085,1.2541223,93860.0,93849.0,4e-05]
[1763330122288,1.2541223,93860.0,93849.0,8e-05]
[1763330122485,1.2541223,93860.0,93849.0,0.00012]
[1763330122689,1.2541223,93860.0,93849.0,0.00016]
[1763330123565,0.09385,93859.0,93849.0,0.00016]
[1763330123772,0.56463,93850.0,93849.0,0.00016]
[1763330123903,0.99078,93850.0,93849.0,0.00016]
[1763330124711,0.92615,93850.0,93849.0,0.10374]
[1763330124934,0.92615,93850.0,93849.0,0.00016]
[1763330125457,1.18395,93850.0,93849.0,0.00016]
[1763330125691,1.18395,93850.0,93849.0,0.05195]
[1763330125926,1.01275,93850.0,93849.0,0.10374]
[1763330126061,0.92715,93850.0,93849.0,0.10378]
[1763330126471,0.92615,93850.0,93849.0,0.10378]
[1763330127029,0.92715,93850.0,93849.0,0.10378]
[1763330127462,0.92615,93850.0,93849.0,0.10378]
[1763330127869,0.92615,93850.0,93849.0,0.10459486]
[1763330128403,0.94598775,93850.0,93849.0,0.10459486]
[1763330129948,0.44598775,93850.0,93849.0,0.10459486]
[1763330130794,0.94598775,93850.0,93849.0,0.10459486]
[1763330131012,0.94598775,93850.0,93849.0,0.10559486]
[1763330131511,0.94598775,93850.0,93849.0,0.10459486]
[1763330132410,0.94598775,93850.0,93849.0,0.05280486]
[1763330132648,0.94598775,93850.0,93849.0,0.00101486]
[1763330133086,1.27296005,93850.0,93836.0,0.05179]
[1763330133295,0.01983775,93849.0,93836.0,0.05179]
[1763330133517,0.01983775,93848.0,93838.0,0.05179]
[1763330133730,0.01983775,93847.0,93838.0,0.05179]
[1763330133912,0.01983775,93846.0,93841.0,0.00022507]
[1763330134122,0.01983775,93845.0,93841.0,0.00022507]
[1763330134344,0.01983775,93844.0,93841.0,0.00022507]
[1763330134545,0.42615,93847.0,93842.0,0.05179]
[1763330134546,0.01983775,93843.0,93842.0,0.05179]
[1763330134894,0.01983775,93843.0,93842.0,0.10358]
[1763330135107,0.01983775,93843.0,93842.0,0.05179]
[1763330135313,0.27663775,93843.0,93842.0,0.10358]
[1763330135510,0.27663775,93843.0,93842.0,0.05179]
[1763330135727,0.77663775,93843.0,93842.0,0.10364]
[1763330136621,0.60543775,93843.0,93842.0,0.10364]
[1763330137462,0.6221939,93843.0,93842.0,0.10364]
[1763330139015,0.5365939,93843.0,93842.0,0.10364]
[1763330140555,0.5365939,93843.0,93841.0,0.00022507]
[1763330140723,0.01983775,93842.0,93841.0,0.00022507]
[1763330140931,0.44598775,93842.0,93841.0,0.00022507]
[1763330141141,0.44598775,93842.0,93837.0,65.84060291]
[1763330141359,0.01983775,93841.0,93837.0,65.84060291]
[1763330141558,0.01983775,93840.0,93837.0,65.84060291]
[1763330141941,0.5,93838.0,93837.0,65.84060291]
[1763330142147,0.51983775,93838.0,93837.0,65.84060291]
[1763330142359,0.94598775,93838.0,93837.0,65.84060291]
[1763330142933,0.94598775,93838.0,93837.0,65.82775725]
[1763330144902,0.94598775,93838.0,93837.0,65.87960725]
[1763330145317,1.20278775,93838.0,93837.0,65.87960725]
[1763330146892,1.03158775,93838.0,93837.0,65.82775725]
[1763330147308,0.94598775,93838.0,93837.0,65.82775725]
[1763330147691,0.94598775,93838.0,93837.0,65.87960725]
[1763330148447,0.94598775,93838.0,93837.0,65.82775725]
[1763330148886,0.94598775,93838.0,93837.0,65.87960725]
[1763330152962,0.94598775,93838.0,93837.0,65.86676298]
[1763330153104,0.94598775,93838.0,93837.0,65.86680298]
[1763330153535,0.94598775,93838.0,93837.0,65.86684298]
[1763330153918,0.94598775,93838.0,93837.0,65.86688298]
[1763330154176,0.94598775,93838.0,93837.0,65.86692298]
[1763330155353,1.20278775,93838.0,93837.0,65.86692298]
[1763330155717,0.70278775,93838.0,93837.0,65.86692298]
[1763330156906,1.20278775,93838.0,93837.0,65.86692298]
[1763330157273,0.94598775,93838.0,93837.0,65.86692298]
[1763330162636,0.44598775,93838.0,93837.0,65.97059236]
[1763330162839,0.33382775,93838.0,93837.0,66.0140111]
[1763330165259,0.50502775,93838.0,93837.0,66.0140111]
[1763330166467,0.50502775,93838.0,93837.0,65.91034172]
[1763330167510,0.41942775,93838.0,93837.0,65.91134172]
[1763330167707,0.33382775,93838.0,93837.0,65.91134172]
[1763330168059,0.33382775,93838.0,93837.0,65.96134172]
[1763330168260,0.33382775,93838.0,93837.0,65.91134172]
[1763330169876,0.33382775,93838.0,93837.0,66.0150111]
[1763330170336,0.33382775,93838.0,93837.0,65.91134172]
[1763330172930,0.33382775,93838.0,93837.0,65.86792298]
[1763330173153,0.33382775,93838.0,93837.0,65.85508038]
[1763330173640,0.33382775,93838.0,93837.0,65.89849912]
[1763330174149,0.33382775,93838.0,93837.0,65.89749912]
[1763330174381,0.33382775,93838.0,93837.0,66.14701283]
[1763330175245,0.50502775,93838.0,93837.0,66.14701283]
[1763330176044,0.50502775,93838.0,93837.0,66.14801283]
[1763330177935,0.35058229,93838.0,93837.0,66.14801283]
[1763330178074,0.01675454,93838.0,93837.0,66.04434345]
[1763330178658,0.3269723,93850.0,93841.0,0.04341874]
[1763330178895,0.3269723,93860.0,93850.0,0.06241872]
[1763330179099,0.01988183,93859.0,93858.0,0.09526874]
[1763330179356,0.01988183,93859.0,93858.0,0.04341874]
[1763330179598,0.01988183,93859.0,93858.0,0.14711874]
[1763330181474,0.01988183,93859.0,93858.0,0.14811874]
[1763330182339,0.01988183,93859.0,93858.0,0.13136384]
[1763330183393,0.01988183,93859.0,93858.0,0.1047]
[1763330185131,0.01988183,93859.0,93858.0,0.09185923]
[1763330185353,0.29331754,93859.0,93858.0,0.09185923]
[1763330185776,0.79331754,93859.0,93858.0,0.09185923]
[1763330186879,0.53663754,93859.0,93858.0,0.09185923]
[1763330187099,0.53663754,93859.0,93858.0,0.09085923]
[1763330187332,0.53663754,93859.0,93858.0,1.09085923]
[1763330187999,0.53663754,93859.0,93858.0,2.09085923]
[1763330188413,0.53663754,93859.0,93858.0,2.03900923]
[1763330188631,0.53663754,93859.0,93858.0,2.07801923]
[1763330188850,0.53663754,93859.0,93858.0,2.03900923]
[1763330189122,0.53663754,93859.0,93858.0,2.07801923]
[1763330190813,0.03663754,93859.0,93858.0,2.07801923]
[1763330191664,0.03663754,93859.0,93858.0,2.07901923]
[1763330192266,0.01988183,93859.0,93858.0,2.06226368]
[1763330193469,0.01988183,93859.0,93858.0,2.05726368]
[1763330193877,0.51988183,93859.0,93858.0,2.05726368]
[1763330195048,0.51988183,93859.0,93858.0,2.04442315]
[1763330195448,0.77656183,93859.0,93858.0,2.04442315]
[1763330195818,0.20775719,93859.0,93858.0,2.04442315]
[1763330196656,0.70775719,93859.0,93858.0,2.04442315]
[1763330197501,0.53663719,93859.0,93858.0,2.14809253]
[1763330197751,0.03663719,93859.0,93858.0,2.04442315]
[1763330199421,0.01988183,93859.0,93858.0,2.02766834]
[1763330202780,0.03663632,93859.0,93858.0,2.02766834]
[1763330203406,0.03663632,93859.0,93858.0,2.02666834]
[1763330203829,0.03663632,93859.0,93858.0,2.02766834]
[1763330204613,0.03663632,93859.0,93858.0,2.02666834]
[1763330204819,0.03663632,93859.0,93858.0,2.02766834]
[1763330205230,0.03663632,93859.0,93858.0,2.00198802]
[1763330205439,0.20775632,93859.0,93858.0,2.00198802]
[1763330205652,0.20775632,93859.0,93858.0,2.00098802]
[1763330206887,0.20775632,93859.0,93858.0,2.00198802]
[1763330207092,0.20775632,93859.0,93858.0,1.96297802]
[1763330207093,0.12219632,93859.0,93858.0,1.96297802]
[1763330207299,0.03663632,93859.0,93858.0,1.96297802]
[1763330207907,0.53663632,93859.0,93858.0,1.96297802]
[1763330208182,0.53663632,93859.0,93858.0,1.96197802]
[1763330212646,0.51988183,93859.0,93858.0,1.94522253]
[1763330215125,0.51988183,93859.0,93858.0,1.91953973]
[1763330215343,0.77656183,93859.0,93858.0,1.91953973]
[1763330215949,0.27656183,93859.0,93858.0,1.91953973]
[1763330216313,0.29331684,93859.0,93858.0,1.91953973]
[1763330217524,0.12219684,93859.0,93858.0,1.91953973]
[1763330218133,0.03663684,93859.0,93858.0,1.91953973]
[1763330225265,0.03663684,93859.0,93858.0,1.89385903]
[1763330225476,0.12219684,93859.0,93858.0,1.89385903]
[1763330226175,0.12219684,93859.0,93858.0,1.87710424]
[1763330226176,0.01988183,93859.0,93858.0,1.87710424]
[1763330226814,0.84288183,93859.0,93858.0,1.87710424]
[1763330227927,0.34288183,93859.0,93858.0,1.87710424]
[1763330229606,0.35963669,93859.0,93858.0,1.87710424]
[1763330230011,0.34288183,93859.0,93858.0,1.87710424]
[1763330231625,0.50206183,93859.0,93858.0,1.87710424]
[1763330231840,1.00206183,93859.0,93858.0,1.87710424]
[1763330232846,1.00206183,93859.0,93858.0,1.86034792]
[1763330233191,1.00306183,93859.0,93858.0,1.86034792]
[1763330234100,0.90546183,93859.0,93858.0,1.86034792]
[1763330234856,0.90646183,93859.0,93858.0,1.86034792]
[1763330235179,0.84488183,93859.0,93858.0,1.83466356]
[1763330235352,1.10156183,93859.0,93858.0,1.83466356]
[1763330235936,1.01600183,93859.0,93858.0,1.83466356]
[1763330236137,1.07640183,93859.0,93858.0,1.83466356]
[1763330236571,1.07440183,93859.0,93858.0,1.83466356]
[1763330236770,1.01500183,93859.0,93858.0,1.83466356]
[1763330237341,1.01400183,93859.0,93858.0,1.83466356]
[1763330237537,1.01500183,93859.0,93858.0,1.83466356]
[1763330238565,0.84388183,93859.0,93858.0,1.83466356]
[1763330245068,0.84388183,93859.0,93858.0,1.8218208]
[1763330245275,1.10056183,93859.0,93858.0,1.78329251]
[1763330248639,0.84388183,93859.0,93858.0,1.78329251]
[1763330252309,0.84288183,93859.0,93858.0,1.78329251]
[1763330253727,0.85963793,93859.0,93858.0,1.76653652]
[1763330253931,0.84288183,93859.0,93858.0,1.76653652]
[1763330254134,0.90328183,93859.0,93858.0,1.76653652]
[1763330254498,0.84288183,93859.0,93858.0,1.76653652]
[1763330254619,0.99614183,93859.0,93858.0,1.76653652]
[1763330254976,0.99614183,93859.0,93858.0,1.74464652]
[1763330255197,0.99614183,93859.0,93858.0,1.71896048]
[1763330255389,1.08270183,93859.0,93858.0,1.71896048]
[1763330255604,0.99714183,93859.0,93858.0,1.71896048]
[1763330255826,0.99714183,93859.0,93858.0,1.69327288]
[1763330256377,1.04575699,93859.0,93858.0,1.69327288]
[1763330256559,0.99614183,93859.0,93858.0,1.69327288]
[1763330256761,0.99714183,93859.0,93858.0,1.69327288]
[1763330257612,1.01390121,93859.0,93858.0,1.69327288]
[1763330258010,1.01490121,93859.0,93858.0,1.69327288]
[1763330258209,1.06451637,93859.0,93858.0,1.69327288]
[1763330258426,1.01490121,93859.0,93858.0,1.69327288]
[1763330258752,1.06451637,93859.0,93858.0,1.69327288]
[1763330259571,1.06451637,93859.0,93858.0,1.69308959]
[1763330259981,1.49068637,93859.0,93858.0,1.69308959]
[1763330263814,1.49068637,93859.0,93858.0,1.66739808]
[1763330265200,1.49068637,93859.0,93858.0,1.64170656]
[1763330265398,1.74748637,93859.0,93858.0,1.64170656]
[1763330265777,1.74648637,93859.0,93858.0,1.64170656]
[1763330266180,1.74748637,93859.0,93858.0,1.64170656]
[1763330267198,1.74648637,93859.0,93858.0,1.64170656]
[1763330267531,1.74748637,93859.0,93858.0,1.64170656]
[1763330269220,1.66188637,93859.0,93858.0,1.64170656]
[1763330271669,1.49068637,93859.0,93858.0,1.64170656]
[1763330271871,1.49068637,93859.0,93858.0,1.61601464]
[1763330275208,1.57628637,93859.0,93858.0,1.59032292]
[1763330275458,1.74748637,93859.0,93858.0,1.59032292]
[1763330276286,1.61227121,93859.0,93858.0,1.59032292]
[1763330277066,1.61127121,93859.0,93858.0,1.59032292]
[1763330277827,1.61227121,93859.0,93858.0,1.59032292]
[1763330278382,1.44107121,93859.0,93858.0,1.59032292]
[1763330279872,1.44107121,93859.0,93858.0,1.56463123]
[1763330283279,0.96481121,93859.0,93858.0,1.56463123]
[1763330283893,1.28781121,93859.0,93858.0,1.56463123]
[1763330284247,1.28681121,93859.0,93858.0,1.56463123]
[1763330284449,1.28581121,93859.0,93858.0,1.56463123]
[1763330284649,1.34995121,93859.0,93858.0,1.56463123]
[1763330285074,0.96381121,93859.0,93858.0,1.56463123]
[1763330285276,1.22061121,93859.0,93858.0,1.53894279]
[1763330285759,1.04941121,93859.0,93858.0,1.53894279]
[1763330285994,1.37241121,93859.0,93858.0,1.53894279]
[1763330286197,1.37141121,93859.0,93858.0,1.53894279]
[1763330286577,1.37241121,93859.0,93858.0,1.53894279]
[1763330287608,1.28681121,93859.0,93858.0,1.53894279]
[1763330289914,1.28681121,93859.0,93858.0,1.64261217]
[1763330289915,1.27005183,93859.0,93858.0,1.64261217]
[1763330290133,0.94705183,93859.0,93858.0,1.53894279]
[1763330290867,1.27005183,93859.0,93858.0,1.53894279]
[1763330291055,1.26905183,93859.0,93858.0,1.53894279]
[1763330291210,1.26905183,93859.0,93858.0,1.53994279]
[1763330292214,1.26905183,93859.0,93858.0,1.53894279]
[1763330292593,1.26905183,93859.0,93858.0,1.53994279]
[1763330292809,1.2858082,93859.0,93858.0,1.53994279]
[1763330293476,0.9628082,93859.0,93858.0,1.53994279]